Cogmind - Beta 17 @@@ ROGUE MODE // 2026.07.05 @ 09:43:42 Player: 5H-4SQ Result: Self-destructed Performance ------------- Evolutions (4) 2000 Regions Visited (4) 800 Robots Destroyed (21) 105 Value Destroyed (490) 490 Prototype IDs (13) 260 Alien Tech Used (0) 0 Bonus (43) 43 TOTAL SCORE: 3698 Bonus ------- Registered with UFD 300 Friendly Fire -257 Cogmind --------- Core Integrity 618/850 Matter 246/300 Energy 100/100 System Corruption 6% Temperature Cool (0) Movement Core (100) Ox1 Location -6/Factory Parts ------- > --- POWER (2) -------- (None) > --- PROPULSION (5) --- (None) > --- UTILITY (6) ------ Small Storage Unit Advanced Signal Interpreter > --- WEAPON (2) ------- (None) > --- INVENTORY (8) ---- Advanced Treads Advanced Treads Improved Medium Treads Improved Medium Treads Improved Medium Treads Improved Heat Sink Improved Proton Missile Launcher Vortex Trap Peak State ------------ > --- POWER ------------ Light Deuterium Engine Nuclear Core > --- PROPULSION ------- Advanced Treads Advanced Treads Improved Medium Treads Improved Medium Treads Improved Medium Treads > --- UTILITY ---------- Small Storage Unit Triangulator Advanced Signal Interpreter Experimental Terrain Scanner Seismic Detector Hardened Light Armor Plating > --- WEAPON ----------- Bolt Gun Bolt Gun > --- INVENTORY -------- Advanced Treads Advanced Treads Advanced Treads Advanced Treads Improved Heat Sink Improved Proton Missile Launcher Vortex Trap [Rating: 54] Favorites ----------- Power Ion Engine Engine Ion Engine Power Core Nuclear Core Propulsion Aluminum Leg Treads Armored Treads Leg Aluminum Leg Hover Unit Airjet Utility Small Storage Unit Device Seismic Detector Storage Small Storage Unit Processor Advanced Signal Interpreter Protection Hardened Light Armor Plating Weapon Medium Laser Energy Gun Medium Laser Ballistic Gun Bolt Gun Launcher Rocket Launcher Build | -11 -10 -10 -8 -6 ------- Run | Yrd Mat Sub Scr Fac Slots Evolved 8 | . . . . 8 Power 1 | . . . . 1 Propulsion 3 | . . . . 3 Utility 4 | . . . . 4 Weapon . | . . . . . Parts Attached 29 | 7 2 . 8 12 Power 3 | 1 . . 2 . Engine 2 | 1 . . 1 . Core 1 | . . . 1 . Reactor . | . . . . . Propulsion 14 | 2 . . 4 8 Treads 9 | . . . 1 8 Leg 3 | 2 . . 1 . Wheel . | . . . . . Hover 2 | . . . 2 . Flight . | . . . . . Utility 7 | 2 1 . . 4 Device 4 | 1 . . . 3 Storage 1 | 1 . . . . Processor 1 | . . . . 1 Hackware . | . . . . . Protection 1 | . 1 . . . Artifact . | . . . . . Weapon 5 | 2 1 . 2 . Energy Gun 2 | 2 . . . . Energy Cannon . | . . . . . Ballistic Gun 2 | . . . 2 . Ballistic Cannon . | . . . . . Launcher 1 | . 1 . . . Special Weapon . | . . . . . Impact Weapon . | . . . . . Slashing Weapon . | . . . . . Piercing Weapon . | . . . . . Special Melee Weapon . | . . . . . Unidentified Prototypes . | . . . . . Parts Lost 11 | . . . . 11 Power 2 | . . . . 2 Propulsion 3 | . . . . 3 Utility 4 | . . . . 4 Weapon 2 | . . . . 2 Highest Loss Streak 11 | . . . . 11 To Critical Strikes . | . . . . . Average Backups 4 | . 2 5 5 6 Power 1 | . 1 1 1 . Propulsion . | . . . . 3 Utility 2 | . . 2 2 1 Weapon . | . . 1 1 1 Tool/Special . | . . . . . Unused Backups 11 | . . 1 7 3 Power 4 | . . 1 3 . Propulsion 3 | . . . 1 2 Utility 1 | . . . 1 . Weapon 3 | . . . 2 1 Tool/Special . | . . . . . Average Slot Usage (%) 97 | . 100 99 99 82 Engine 12 | . 14 14 13 4 Treads 9 | . . . 10 25 Leg 14 | . 28 28 10 . Hover 4 | . . . 7 2 Device 13 | . 12 13 14 14 Storage 12 | . 14 13 14 6 Energy Gun 11 | . 28 17 10 . Ballistic Gun 5 | . . . 6 10 Launcher 8 | . . 10 10 . Peak Build Rating 54 | 7 8 9 16 54 Average Rating 15 | 5 7 8 14 42 On Entrance 7 | . 7 7 9 15 Avg Prop Armor Cover (%) 12 | . . . 13 6 Naked Turns . | . . . . . Heaviest Build 27 | 14 14 18 17 27 Greatest Support 134 | 20 20 20 20 134 Greatest Overweight (x) 2 | . . . 2 . Average Overweight (x) . | . . . . . Largest Inventory Capacity 8 | 8 8 8 8 8 Average Capacity 7 | 7 8 7 8 8 Most Carried 8 | 1 3 8 8 8 Average Carried 5 | . 2 6 6 7 Final Capacity 8 | 8 8 8 8 8 Final Carried 8 | 1 3 8 7 8 Class Distribution -------------------- 78% | Mutant 21% | Derelict-Mutant Dominant Class ---------------- Mutant | -10/Materials Mutant | -10/Subcaves Mutant | -8/Scraptown Derelict-Mutant | -6/Factory Resources | -11 -10 -10 -8 -6 ----------- Run | Yrd Mat Sub Scr Fac Matter Collected 636 | 260 30 170 137 39 Remotely . | . . . . . Salvage Created 530 | 118 53 320 . 39 Parts 44 | 13 5 25 . 1 Haulers Intercepted . | . . . . . Recyclers Shooed . | . . . . . Parts Field Recycled . | . . . . . Retrieved Matter . | . . . . . Parts Self-Destructed 12 | . . 12 . . Prevented . | . . . . . Parts Restored . | . . . . . Kills | -11 -10 -10 -8 -6 ------- Run | Yrd Mat Sub Scr Fac Combat Hostiles Destroyed 13 | . 3 9 . 1 Melee 1 | . . . . 1 Guns 7 | . 3 4 . . AOE 5 | . . 5 . . Classes Destroyed 6 | 1 2 2 . 1 Tunneler 6 | 6 . . . . Operator 1 | . 1 . . . Swarmer 3 | . 3 . . . Grunt 1 | . . 1 . . Brawler 1 | . . . . 1 Subdweller 8 | . . 8 . . Thug 1 | . . 1 . . Best Kill Streak 5 | 2 3 5 . 1 Combat Bots Only 5 | . 3 5 . 1 Max Kills in Single Turn 3 | 1 1 3 . 1 Gunslinging . | . . . . . Exploded 2 | . . 2 . . Melee 1 | . . . . 1 Uniques/NPCs Destroyed . | . . . . . Combat | -11 -10 -10 -8 -6 -------- Run | Yrd Mat Sub Scr Fac Hostile Shots Fired 111 | . 12 12 . 87 Missed 27 | . 5 2 . 20 Hits 84 | . 7 10 . 67 Melee 24 | . . . . 24 Projectile 60 | . 7 10 . 43 Critical Strikes 5 | . . 1 . 4 Damage Taken 1806 | . 58 238 . 1510 Core 337 | . . 105 . 232 Absorbed by Shields . | . . . . . Core Remaining (%) 79 | 100 . . 58 . Volleys Fired 64 | 23 7 15 . 19 Largest 2 | 2 2 2 . 2 Hottest 90 | 90 90 90 . 40 Shots Fired 115 | 46 14 31 . 24 Gun 101 | 46 13 18 . 24 Cannon . | . . . . . Launcher 14 | . 1 13 . . Special . | . . . . . Kinetic 24 | . . . . 24 Thermal 77 | 46 13 18 . . Explosive 14 | . 1 13 . . Electromagnetic . | . . . . . Robot Hit Streak 14 | 6 3 9 . 14 Robot Miss Streak 4 | 4 3 2 . 1 Penetration Max . | . . . . . Secondary Targets . | . . . . . Shots Hit Robots 69 | 25 6 18 . 20 Core Hits 40 | 6 4 18 . 12 Critical Kills . | . . . . . Critical Parts Destroyed . | . . . . . Critical Strikes 3 | 2 . 1 . . Burn 3 | 2 . 1 . . Melee Attacks . | . . . . . Impact . | . . . . . Slashing . | . . . . . Piercing . | . . . . . Sneak Attacks . | . . . . . Combat Hostiles . | . . . . . Follow-up Attacks . | . . . . . Damage Inflicted 1738 | 293 116 1159 . 170 Guns 646 | 293 69 137 . 147 Cannons . | . . . . . Explosions 1069 | . 47 1022 . . Melee . | . . . . . Ramming 23 | . . . . 23 Kinetic 147 | . . . . 147 Thermal 499 | 293 69 137 . . Explosive 1069 | . 47 1022 . . Electromagnetic . | . . . . . Impact . | . . . . . Slashing . | . . . . . Piercing . | . . . . . Highest Corruption 6 | . 3 3 . 6 Average Corruption 3 | . 2 3 . 5 Corruption Purged . | . . . . . Corruption Blocked . | . . . . . Effects 11 | . . 10 . 1 Message Errors 2 | . . 2 . . Matter Fused 2 | . . 2 . . Heat Flow Errors 2 | . . 1 . 1 Energy Discharges 2 | . . 2 . . Parts Rejected 1 | . . 1 . . Data Loss (minor) 1 | . . 1 . . Misfires 1 | . . 1 . . Overload Shots . | . . . . . Overflow Damage 20 | . 5 15 . . Projectiles . | . . . . . Explosions 20 | . 5 15 . . Melee . | . . . . . Knockbacks . | . . . . . Impact . | . . . . . Kinetic . | . . . . . Secondary . | . . . . . Self-Inflicted Damage 35 | . . 35 . . Shots 1 | . . 1 . . Rammed 11 | . . . . 11 Targets Rammed 12 | . . . . 12 Kicked . | . . . . . Crushed 1 | . . . . 1 Highest Temperature 291 | 210 225 291 . 227 Average Temperature 75 | 76 90 109 . 31 Received Heat Transfer 326 | . . 326 . . Siege Activations . | . . . . . Martial Activations . | . . . . . Shielding Activations . | . . . . . Robots Disrupted . | . . . . . Combat Hostiles . | . . . . . Robots Corrupted . | . . . . . Combat Hostiles . | . . . . . Parts Fried . | . . . . . Impact Corruptions . | . . . . . Robots Melted . | . . . . . Combat Hostiles . | . . . . . Parts Melted 4 | 2 . 2 . . Heat Transferred 1596 | 929 186 481 . . Parts Sabotaged . | . . . . . Parts Stolen . | . . . . . Parts Stripped . | . . . . . Power Chain Reactions . | . . . . . Alert | -11 -10 -10 -8 -6 ------- Run | Yrd Mat Sub Scr Fac Maximum Alert Level . | . . . . . Low Security (%) 100 | 100 100 . . 100 Level 1 . | . . . . . Level 2 . | . . . . . Level 3 . | . . . . . Level 4 . | . . . . . Level 5 . | . . . . . High Security . | . . . . . Max Security . | . . . . . Peak Influence 60 | 10 60 . . 20 Initial . | . . . . . Average 6 | 1 26 . . . Influence Increases 169 | 30 99 20 . 20 Destroy 0b10 Robot/C 100 | . 60 20 . 20 Destroy 0b10 Robot/NC 35 | 30 5 . . . Destroy Leader 10 | . 10 . . . Successful Hack 12 | . 12 . . . Destroy Structure 12 | . 12 . . . Influence Decreases 169 | 30 50 69 . 20 Entered New Map 25 | . . 25 . . Time Decay 134 | 30 50 44 . 10 Lost Part 10 | . . . . 10 Squads Dispatched 2 | . 1 . . 1 Investigation 1 | . 1 . . . Extermination . | . . . . . Reinforcement . | . . . . . Assault . | . . . . . Garrison 1 | . . . . 1 Intercept . | . . . . . Searches Triggered . | . . . . . Construction Impeded . | . . . . . Haulers Reinforced . | . . . . . Active Scanning Responses . | . . . . . Cargo Convoy Interrupts . | . . . . . Stealth | -11 -10 -10 -8 -6 --------- Run | Yrd Mat Sub Scr Fac Distress Signals 1 | . 1 . . . Communications Jammed . | . . . . . Distress Signals . | . . . . . Times Spotted 26 | . 7 14 . 5 Peak Tracking Total 7 | . 4 7 . 5 Tactical Retreats . | . . . . . Traps | -11 -10 -10 -8 -6 ------- Run | Yrd Mat Sub Scr Fac Traps Triggered 4 | . 2 . . 2 Indirectly . | . . . . . Trap Hack Attempts . | . . . . . Triggered . | . . . . . Disarmed . | . . . . . Reprogrammed . | . . . . . Reused . | . . . . . Traps Extracted . | . . . . . Installed . | . . . . . Triggered . | . . . . . Most Traps Carried 1 | . . . 1 1 Machines | -11 -10 -10 -8 -6 ---------- Run | Yrd Mat Sub Scr Fac Machines Disabled . | . . . . . Max in Single Turn . | . . . . . Machines Repaired . | . . . . . Machines Dismantled . | . . . . . Machines Sabotaged . | . . . . . Overloaded Fab Kills . | . . . . . Hacking | -11 -10 -10 -8 -6 --------- Run | Yrd Mat Sub Scr Fac Machines Accessed 6 | . 1 2 2 1 Terminals 1 | . 1 . . . Fabricators . | . . . . . Repair Stations . | . . . . . Recycling Units 1 | . . . . 1 Scanalyzers . | . . . . . Garrison Access . | . . . . . Total Hacks 11 | . 5 3 2 1 Successful 8 | . 3 3 2 . Failed 3 | . 2 . . 1 Catastrophic . | . . . . . Database Lockouts . | . . . . . Manual 5 | . 5 . . . Terminals 5 | . 5 . . . Fabricators . | . . . . . Repair Stations . | . . . . . Recycling Units 1 | . . . . 1 Scanalyzers . | . . . . . Garrison Access . | . . . . . Terminal Hacks 7 | . 2 3 2 . Record 2 | . . 1 1 . Open Door 1 | . . 1 . . Terminal Index 1 | . 1 . . . Zone Layout 1 | . 1 . . . Proto ID Catalog 1 | . . . 1 . Release Object 1 | . . 1 . . Fabricator Hacks . | . . . . . Repair Station Hacks . | . . . . . Recycling Unit Hacks . | . . . . . Scanalyzer . | . . . . . Garrison Access Hacks . | . . . . . Unauthorized Hacks 1 | . 1 . . . Terminals 1 | . 1 . . . Botnet 1 | . 1 . . . Fabricators . | . . . . . Repair Stations . | . . . . . Recycling Units . | . . . . . Scanalyzers . | . . . . . Garrison Access . | . . . . . Data Cores Recovered . | . . . . . Used . | . . . . . Hacking Detections 2 | . 1 . . 1 Full Trace Events 1 | . 1 . . . Feedback Events . | . . . . . Feedback Blocked . | . . . . . Robot Schematics Acquired . | . . . . . Robots Built . | . . . . . Authchips . | . . . . . Time . | . . . . . Total Robot Build Rating . | . . . . . Part Schematics Acquired . | . . . . . Parts Built . | . . . . . Authchips . | . . . . . Time . | . . . . . Total Part Build Rating . | . . . . . Part Studies Acquired . | . . . . . Parts Repaired . | . . . . . Time . | . . . . . Parts Recycled . | . . . . . Recycled Matter . | . . . . . Retrieved Matter . | . . . . . Retrieved Components . | . . . . . Parts Scanalyzed . | . . . . . Part Schematics Acquired . | . . . . . Parts Damaged . | . . . . . Bothacking | -11 -10 -10 -8 -6 ------------ Run | Yrd Mat Sub Scr Fac Used RIF Installer . | . . . . . Robots Hacked . | . . . . . Non-combat . | . . . . . Combat . | . . . . . Robot Hacks Applied . | . . . . . Relay Couplers Released . | . . . . . Fabnet Peak Effective % . | . . . . . Robots Rewired . | . . . . . Allies Hacked . | . . . . . Hacks Repelled . | . . . . . Allies | -11 -10 -10 -8 -6 -------- Run | Yrd Mat Sub Scr Fac Total Allies . | . . . . . Largest Group . | . . . . . Highest-Rated Group . | . . . . . Highest-Rated Ally . | . . . . . Initial UFD Resources 22 | . . . . 22 Total Orders . | . . . . . Ally Attacks . | . . . . . Total Damage . | . . . . . Kills . | . . . . . Allies Corrupted . | . . . . . Allies Melted . | . . . . . Intel | -11 -10 -10 -8 -6 ------- Run | Yrd Mat Sub Scr Fac Active Infowar (turns) 2462 | 13 146 450 1583 270 Terrain 256 | . . . . 256 Seismic 2400 | 13 146 450 1583 208 Triangulation 162 | . . . . 162 Robot Analysis Total . | . . . . . Derelict Logs Recovered 4 | . . 1 3 . Drone Launches . | . . . . . Drone Recoveries . | . . . . . Exploration | -11 -10 -10 -8 -6 ------------- Run | Yrd Mat Sub Scr Fac Turns Passed 2746 | 238 162 484 1583 279 Spaces Moved 2299 | 117 103 346 1608 125 Core 3 | 3 . . . . Treads 232 | . . . 115 117 Legs 1371 | 114 103 346 808 . Wheels . | . . . . . Hover 693 | . . . 685 8 Flight . | . . . . . Fastest Speed 50 | 50 120 120 56 56 Average Speed 104 | 118 120 120 96 142 Slowest Speed 190 | 120 120 120 190 160 Overloaded Moves . | . . . . . Propulsion Burnouts . | . . . . . Robots Hopped . | . . . . . Potential Cave-ins . | . . . . . Cave-ins Triggered . | . . . . . Exploration Rate (%) 29 | 5 23 22 92 4 Regions Visited 4 Branch Regions 2 Pre-discovered Areas . | . . . . . Known Exits Taken . | . . . . . Unknown Exits Taken 4 | 1 1 1 1 . Scrap Searched 7 | . . . 7 . Spaces Dug 9 | . . 9 . . Terrain Destroyed 122 | . 10 112 . . Melee . | . . . . . Projectile . | . . . . . AOE 122 | . 10 112 . . Terrain Rammed . | . . . . . Walls Destroyed . | . . . . . Machines Disabled . | . . . . . Actions | -11 -10 -10 -8 -6 --------- Run | Yrd Mat Sub Scr Fac Total 2515 | 167 125 384 1641 198 Wait 58 | 20 10 9 1 18 Move 2295 | 116 102 345 1607 125 Hop . | . . . . . Pick Up 25 | 1 2 7 9 6 Fast Attach 19 | 7 . . 6 6 Attach 7 | . . 1 . 6 Detach 2 | . . . 1 1 Swap 13 | . 4 4 2 3 Drop 19 | . . 2 15 2 Fire 64 | 23 7 15 . 19 Melee . | . . . . . Ram . | . . . . . Kick . | . . . . . Crush 12 | . . . . 12 Escape Stasis . | . . . . . Rewire . | . . . . . Trap . | . . . . . Miscellaneous 1 | . . 1 . . Route ------- -11/Scrapyard -10/Materials -10/Subcaves (discovered 2 exits: [*Mat] / *Scr) -8/Scraptown (discovered 2 exits: *Fac x2) -6/Factory History --------- Turn | Location | Event 4 | -11/Scrapyard | Discovered new exit (range 15) 239 | -11/Scrapyard | Entered Materials 304 | -10/Materials | Build established: Mutant 396 | -10/Materials | Discovered new exit (range 5) 401 | -10/Materials | Entered Subcaves 402 | -10/Subcaves | Approached by a straggling Scientist 426 | -10/Subcaves | Learned location of 1 exit from Materials 515 | -10/Subcaves | Ambushed by swarm of Subdwellers 561 | -10/Subcaves | Lost 3 allies 562 | -10/Subcaves | Released subatomizers from SUBCON Basin 732 | -10/Subcaves | Ambushed by Subdweller buried in earth 817 | -10/Subcaves | Discovered new exit (range 12) 885 | -10/Subcaves | Entered Scraptown 885 | -8/Scraptown | System corruption cleaned by C-Scrubber 1157 | -8/Scraptown | Heard Great Nut preacher, LISTEN AND RECITE! 1263 | -8/Scraptown | Scanned Subdweller tech in exchange for log data 1265 | -8/Scraptown | Learned location of 1 exit from Research 1266 | -8/Scraptown | Learned 8 Research zone layouts 1267 | -8/Scraptown | Learned location of 1 exit from Upper Caves 1286 | -8/Scraptown | Discovered new exit (range 5) 1389 | -8/Scraptown | Visited Cave Peace 1415 | -8/Scraptown | Visited Comm Corps 1568 | -8/Scraptown | Visited TADAMA 1598 | -8/Scraptown | Visited UFD Registry 1615 | -8/Scraptown | Visited Fellowship of the Rings 1624 | -8/Scraptown | Visited Awakened 1660 | -8/Scraptown | Visited SPCMW 1921 | -8/Scraptown | Registered with UFD as "Dualglider" 1987 | -8/Scraptown | Visited Botcube Research 2008 | -8/Scraptown | Visited A0-MCA Data Center 2048 | -8/Scraptown | Visited DA-N13 Charitable Foundation 2053 | -8/Scraptown | Found DCF Scrap (27 items) 2104 | -8/Scraptown | Visited Infowarlord's Domain 2108 | -8/Scraptown | Found Exp. Terrain Scanner 2121 | -8/Scraptown | Visited Science Testing Area 2132 | -8/Scraptown | Visited Junk Repository 2221 | -8/Scraptown | Delivered Scrap Shield to a Scientist 2295 | -8/Scraptown | Visited Science Guys 2319 | -8/Scraptown | Visited Curators Association 2377 | -8/Scraptown | Build established: Derelict-Mutant 2404 | -8/Scraptown | Discovered new exit (range 5) 2468 | -8/Scraptown | Entered Factory 2468 | -6/Factory | Evolved 8 slots: Power x1, Propulsion x3, Utility x4 2658 | -6/Factory | Garrison activated, responded to threat 2747 | -6/Factory | Self-destructed Last Messages --------------- 02693_ U-05 Engineer lays Concrete. 02694_ Slammed into B-48 Gladiator. 02694_ U-05 Engineer lays Concrete. 02695_ Adv. Treads destroyed. 02695_ Adv. Treads severed. 02695_ Slammed into B-48 Gladiator. 02703_ Nuclear Core destroyed. 02703_ K-01 Serf collects debris. 02704_ Slammed into B-48 Gladiator. 02705_ Bolt Gun destroyed. 02705_ Hrd. Light Armor Plating destroyed. 02705_ Slammed into B-48 Gladiator. 02706_ K-01 Serf collects debris. 02707_ Slammed into B-48 Gladiator. 02711_ System corrupted: Heat flow error (+261). 02713_ U-05 Engineer works on Assembly Bed. 02721_ Adv. Treads destroyed. 02735_ Adv. Treads severed. 02738_ Exp. Terrain Scanner destroyed. 02740_ Adv. Treads destroyed. Map ----- +----------------------------------------------------+ | ?????????????????????#????#??????????????????????? | | ????????????????????????????#????????????????????? | | ?????????????????????????????????????????????????? | | ??#????????? ???????????#????????????????????????? | | #????????????????????????????????????????????????? | | ??????#?????????????? ??#????????????????????????? | | ???#????#??? ????? ????????????#?????????????????? | | ??????????? ??????????????????????????????????? ?? | | ???????#?#?????????? ?#?????????????????????????? | | ???????????? ????????????#???????????????????????? | | ???????#?# ???? ???? ???????????????????????????? | | ???##?????????????????#???????????#??????????? ??? | | #???#?#??#???? ? ????????#??????#???????????#???? | | ?#??#??#?#????? ??? ???????##????????????????????? | | ?##??#?????????#?????????????#???????????????????? | | #??#?#???????????????????????????????????????????? | | ???????# ? ????? ? ?? ?????????????? ????????? | | ?????????????# ???????? ????????????????????? | | ######## ???# +???? ?? ?????????????????????? | | # ????+ #?? ?? ?????????????????????? ? | | #??? ?# #??? ?????????? ? ????????????? | | #?????# #??????????????????????????? ?? | | #??? ?# #??? ??????????????? ????????? | | #?"???# #??#?????????#????????????????? | | #?????# ###############??? ???????????? | | #?????+ #! s@ ! #????????? ??????? | | #???? # # l ##???????????????? | | #??? ?# # """"""""" #????????????????? | | #/############ # b #????????????????? | | # """"""""" ##???????????????? | | ^^ # +? ??????????????? | | + """"""""" #????????????????? | | == # #???? ???????????? | | %= # """"""""" #?#?? ???????????? | | " # ??????#????????????? | | ^ # """"""""???#???????? ??????? | | ^ # ?????????##?????????? | | ! #########+?????#??????????????? | | #????????????#?????#??????????? | | ???????? ???????????????#??? | | ###?????????????#?????????????? | | ############## # "??? ???????#???????????????? | | ????????? ??# #????"?? ???#?#???????????????? | | #?????? ?? ?# # ??????????? ?????#?????????? | | ?#?? "???????+ +? ???????????????????????????? | | ???????"???"?# #??? ????????????+????????????? | | ??#? ??? ????# # ??? ???????????????#????????? | | ????? ???? ?? ??? ??????? ?????#????????????? | | ?????"" "????????????? ?????? ??????????#?#?????? | | ??#?????"" ??# ?????#???????#????????????????????? | +----------------------------------------------------+ Best States ------------- Heat Dissipation 51 Energy Generation 23 Energy Capacity 280 Matter Stores 300 Matter Capacity 300 Sight Range 16 Terrain Scan Range 30 Terrain Scan Density 10 Armor Coverage 150 Evasion (%) 55 Recoil Reduction 5 Item Schematics ----------------- None Robot Schematics ------------------ None Fabricated ------------ Nothing Repaired ---------- Nothing Studied --------- None Alien Tech Used ----------------- None Achievements -------------- Civilization 2243 Do Not Disturb Challenges ------------ None Game ------ Seed MagneticDeuteriumSaw Manual? 0 Play Time 00:25:18 Cumulative 58.9 hours Start 2026.07.04 @ 23:13:15 End 2026.07.05 @ 09:43:42 Sessions 3 Manual Loads 0 Difficulty Rogue Special Mode None Game No. 82 Rogue 82 Adventurer 0 Explorer 0 Win Type - Total 0 Types 0/0/0/0/0/0/0/0/0/0 Lore% 39 Gallery% 35 Achievement% 23 Wizard Run 0 Options --------- Layout 1 ASCII 0 Keyboard 0 Movement Numpad Keybinds 0 Fullscreen 1 Font 24/Smallcaps Map View 50x35 Zoom Use 0% Tactical HUD 1 Map Filters NONE Filters NONE Steam 1 RUN: 20fd0567-ed16-4d76-a9d3-983fdf30a116